[Event "6e festival d'échecs d'Allauch"]
[Site "Allauch, France"]
[Date "2024.08.28"]
[Round "5.7"]
[White "Kemmo, Jules"]
[Black "Anton, Christophe"]
[Result "0-1"]
[TimeControl "1 h 30 min (+30s/coup)"]
[WhiteElo "1547"]
[BlackElo "1697"]

1. e4 {[%clk 01:30:56]} {[%emt 00:00:02]} c5 {[%clk 01:30:56]} {[%emt
00:00:05]} 2. Nc3 {[%clk 01:31:19]} {[%emt 00:00:07]} d6 {[%clk 01:31:16]}
{[%emt 00:00:10]} 3. f4 {[%clk 01:31:37]} {[%emt 00:00:12]} Nf6 {[%clk
01:30:56]} {[%emt 00:00:51]} 4. Bc4 {[%clk 01:31:23]} {[%emt 00:00:43]} Nc6
{[%clk 01:31:03]} {[%emt 00:00:23]} 5. d3 {[%clk 01:31:24]} {[%emt 00:00:30]}
Bg4 {[%clk 01:28:32]} {[%emt 00:03:01]} 6. Nge2 {[%clk 01:29:40]} {[%emt
00:02:14]} g6 {[%clk 01:26:40]} {[%emt 00:02:22]} 7. O-O {[%clk 01:29:15]}
{[%emt 00:00:55]} Bg7 {[%clk 01:26:39]} {[%emt 00:00:31]} 8. Qe1 {[%clk
01:28:48]} {[%emt 00:00:57]} O-O {[%clk 01:21:19]} {[%emt 00:05:50]} 9. h3
{[%clk 01:28:33]} {[%emt 00:00:45]} Bxe2 {[%clk 01:21:15]} {[%emt 00:00:34]} 10.
Nxe2 {[%clk 01:27:55]} {[%emt 00:01:08]} Nb4 {[%clk 01:18:04]} {[%emt
00:03:40]} 11. Qd1 {[%clk 01:25:03]} {[%emt 00:03:23]} a6 {[%emt 00:01:27]} 12.
c3 {[%clk 01:24:25]} {[%emt 00:01:07]} Nc6 {[%clk 01:16:52]} {[%emt 00:00:46]}
13. f5 {[%clk 01:23:28]} {[%emt 00:01:27]} b5 {[%clk 01:16:44]} {[%emt
00:00:38]} 14. Bb3 {[%clk 01:23:48]} {[%emt 00:00:10]} Qb6 {[%clk 01:16:26]}
{[%emt 00:00:47]} 15. Kh1 {[%clk 01:23:28]} {[%emt 00:00:50]} Nd7 {[%clk
01:14:42]} {[%emt 00:02:14]} 16. fxg6 {[%clk 01:22:56]} {[%emt 00:01:02]} hxg6
{[%clk 01:14:54]} {[%emt 00:00:18]} 17. Nf4 {[%clk 01:21:00]} {[%emt 00:02:24]}
Nde5 {[%clk 01:11:10]} {[%emt 00:04:16]} 18. Nd5 {[%clk 01:18:48]} {[%emt
00:02:43]} Qd8 {[%clk 01:10:21]} {[%emt 00:01:18]} 19. Bg5 {[%clk 01:18:12]}
{[%emt 00:01:07]} c4 {[%clk 01:03:12]} {[%emt 00:07:39]} 20. dxc4 {[%clk
01:17:27]} {[%emt 00:01:15]} Nxc4 {[%clk 01:02:43]} {[%emt 00:00:59]} 21. Qc1
{[%clk 01:16:25]} {[%emt 00:01:32]} f6 {[%clk 00:58:43]} {[%emt 00:04:30]} 22.
Bh6 {[%clk 01:15:51]} {[%emt 00:01:03]} N6e5 {[%clk 00:55:40]} {[%emt
00:03:34]} 23. Bxg7 {[%clk 01:14:43]} {[%emt 00:01:39]} Kxg7 {[%clk 00:54:48]}
{[%emt 00:01:21]} 24. Bc2 {[%clk 01:12:37]} {[%emt 00:02:35]} Rh8 {[%clk
00:54:07]} {[%emt 00:01:11]} 25. Nf4 {[%clk 01:08:21]} {[%emt 00:04:45]} Qd7
{[%clk 00:51:27]} {[%emt 00:02:54]} 26. b3 {[%clk 01:06:27]} {[%emt 00:02:42]}
Nb6 {[%clk 00:48:12]} {[%emt 00:03:45]} 27. Qe3 {[%clk 01:02:43]} {[%emt
00:04:14]} g5 {[%clk 00:42:58]} {[%emt 00:05:43]} 28. Nd5 {[%clk 01:00:52]}
{[%emt 00:02:21]} Nxd5 {[%clk 00:42:26]} {[%emt 00:01:03]} 29. exd5 {[%emt
00:03:49]} Rh4 {[%clk 00:39:18]} 30. Bf5 {[%clk 00:57:50]} {[%emt 00:03:49]}
Qc7 {[%clk 00:35:51]} {[%emt 00:03:57]} 31. Rac1 {[%clk 00:52:57]} {[%emt
00:05:23]} Rah8 {[%clk 00:34:58]} {[%emt 00:01:24]} 32. Kg1 {[%clk 00:50:30]}
{[%emt 00:02:57]} g4 {[%clk 00:28:28]} {[%emt 00:07:00]} 33. Rf4 {[%clk
00:49:01]} {[%emt 00:01:59]} Qc5 {[%clk 00:26:51]} {[%emt 00:02:06]} 34. Qxc5
{[%clk 00:48:42]} {[%emt 00:00:49]} dxc5 {[%clk 00:27:15]} {[%emt 00:00:06]} 35.
Bxg4 {[%clk 00:48:20]} {[%emt 00:00:53]} Nd3 {[%clk 00:26:16]} {[%emt
00:01:29]} 36. Re4 {[%clk 00:47:50]} {[%emt 00:00:59]} Nxc1 {[%clk 00:26:08]}
{[%emt 00:00:39]} 37. Rxe7+ {[%clk 00:47:57]} {[%emt 00:00:23]} Kg6 {[%clk
00:24:42]} {[%emt 00:01:57]} 38. d6 {[%clk 00:48:01]} {[%emt 00:00:25]} Rxg4
{[%clk 00:20:50]} {[%emt 00:04:22]} 39. hxg4 {[%clk 00:48:00]} {[%emt
00:00:31]} Rd8 {[%clk 00:21:15]} {[%emt 00:00:05]} 40. d7 {[%clk 00:47:10]}
{[%emt 00:01:20]} Nxa2 {[%clk 00:20:11]} {[%emt 00:01:34]} 41. Kf2 {[%clk
00:46:30]} {[%emt 00:01:11]} Nxc3 {[%clk 00:20:33]} {[%emt 00:00:08]} 42. Re3
{[%clk 00:44:56]} {[%emt 00:01:59]} Nd1+ {[%clk 00:20:33]} {[%emt 00:00:32]}
0-1

[Event "6e festival d'échecs d'Allauch"]
[Site "Allauch, France"]
[Date "2024.08.28"]
[Round "5.8"]
[White "Menager, Stephane"]
[Black "Bosseau Cassan, Romeo"]
[Result "1-0"]
[TimeControl "1 h 30 min (+30s/coup)"]
[WhiteElo "1660"]
[BlackElo "1514"]

1. d4 {[%clk 01:30:57]} {[%emt 00:00:02]} d5 {[%clk 01:30:39]} {[%emt
00:00:22]} 2. c4 {[%clk 01:31:23]} {[%emt 00:00:04]} e6 {[%clk 01:30:44]}
{[%emt 00:00:25]} 3. a3 {[%clk 01:31:24]} {[%emt 00:00:28]} a5 {[%clk
01:30:08]} {[%emt 00:01:06]} 4. Nc3 {[%clk 01:30:31]} {[%emt 00:01:24]} Nf6
{[%clk 01:29:04]} {[%emt 00:01:34]} 5. Nf3 {[%clk 01:29:03]} {[%emt 00:01:58]}
Nc6 {[%clk 01:28:02]} {[%emt 00:01:32]} 6. Bg5 {[%clk 01:29:11]} {[%emt
00:00:23]} h6 {[%clk 01:28:00]} {[%emt 00:00:32]} 7. Bh4 {[%clk 01:29:37]}
{[%emt 00:00:04]} g5 {[%clk 01:27:45]} {[%emt 00:00:45]} 8. Bg3 {[%clk
01:27:54]} {[%emt 00:02:12]} Bd6 {[%clk 01:27:01]} {[%emt 00:01:14]} 9. c5
{[%clk 01:24:40]} {[%emt 00:03:45]} Bxg3 {[%clk 01:25:32]} {[%emt 00:01:58]} 10.
hxg3 {[%clk 01:25:01]} {[%emt 00:00:09]} Bd7 {[%clk 01:22:18]} {[%emt
00:03:45]} 11. Nxg5 {[%clk 01:23:48]} {[%emt 00:01:42]} Ng4 {[%clk 01:10:53]}
{[%emt 00:11:55]} 12. Nf3 {[%clk 01:16:06]} {[%emt 00:08:12]} Qe7 {[%clk
01:01:03]} {[%emt 00:10:20]} 13. Nh2 {[%clk 01:04:32]} {[%emt 00:12:05]} Nf6
{[%clk 00:57:29]} {[%emt 00:04:04]} 14. e3 {[%clk 01:04:33]} {[%emt 00:00:29]}
e5 {[%clk 00:55:10]} {[%emt 00:02:48]} 15. Nf3 {[%clk 01:05:02]} {[%emt
00:00:02]} exd4 {[%clk 00:54:58]} {[%emt 00:00:42]} 16. Nxd4 {[%clk 01:05:09]}
{[%emt 00:00:23]} Qxc5 {[%clk 00:54:58]} {[%emt 00:00:30]} 17. Qf3 {[%clk
00:56:04]} {[%emt 00:09:36]} Qe7 {[%clk 00:43:01]} {[%emt 00:12:28]} 18. Nxd5
{[%clk 00:50:14]} {[%emt 00:06:19]} Nxd5 {[%clk 00:43:13]} {[%emt 00:00:17]} 19.
Qxd5 {[%clk 00:50:37]} {[%emt 00:00:07]} Nd8 {[%emt 00:20:56]} 20. Rc1 {[%clk
00:32:15]} {[%emt 00:18:42]} c6 {[%clk 00:19:04]} {[%emt 00:04:23]} 21. Qc5
{[%clk 00:25:35]} {[%emt 00:07:10]} Qe4 {[%clk 00:14:58]} {[%emt 00:04:36]} 22.
Rh4 {[%clk 00:24:55]} {[%emt 00:01:11]} Qg6 {[%clk 00:14:58]} {[%emt 00:00:30]}
23. Qe5+ {[%clk 00:24:48]} {[%emt 00:00:37]} 1-0

[Event "6e festival d'échecs d'Allauch"]
[Site "Allauch, France"]
[Date "2024.08.29"]
[Round "6.1"]
[White "Degraeve, Jean-Marc"]
[Black "Philippe, Guillaume"]
[Result "0-1"]
[TimeControl "1 h 30 min (+30s/coup)"]
[WhiteElo "2487"]
[BlackElo "2356"]

1. e4 {[%clk 01:25:14]} {[%emt 00:05:46]} c5 {[%clk 01:30:53]} {[%emt
00:00:08]} 2. Nf3 {[%clk 01:25:33]} {[%emt 00:00:11]} e6 {[%clk 01:31:19]}
{[%emt 00:00:04]} 3. c3 {[%clk 01:25:42]} {[%emt 00:00:20]} Nf6 {[%clk
01:31:24]} {[%emt 00:00:24]} 4. e5 {[%clk 01:25:20]} {[%emt 00:00:52]} Nd5
{[%clk 01:31:49]} {[%emt 00:00:05]} 5. a3 {[%clk 01:25:24]} {[%emt 00:00:27]}
d6 {[%clk 01:31:20]} {[%emt 00:00:58]} 6. d4 {[%clk 01:25:44]} {[%emt
00:00:10]} cxd4 {[%clk 01:31:40]} {[%emt 00:00:10]} 7. c4 {[%clk 01:26:08]}
{[%emt 00:00:07]} Nc7 {[%clk 01:14:47]} {[%emt 00:17:23]} 8. Qxd4 {[%clk
01:09:42]} {[%emt 00:16:56]} Nc6 {[%clk 01:14:40]} {[%emt 00:00:37]} 9. Qe4
{[%clk 01:09:24]} {[%emt 00:00:47]} dxe5 {[%clk 01:14:04]} {[%emt 00:01:07]} 10.
Nxe5 {[%clk 01:03:29]} {[%emt 00:06:26]} Qd4 {[%clk 01:13:32]} {[%emt
00:01:02]} 11. Qxd4 {[%clk 01:03:48]} {[%emt 00:00:10]} Nxd4 {[%clk 01:13:56]}
{[%emt 00:00:06]} 12. Kd1 {[%clk 01:02:54]} {[%emt 00:01:24]} f6 {[%clk
01:12:23]} {[%emt 00:02:02]} 13. Nf3 {[%clk 00:58:54]} {[%emt 00:04:29]} Nxf3
{[%clk 01:10:05]} {[%emt 00:02:49]} 14. gxf3 {[%clk 00:59:22]} {[%emt
00:00:02]} b6 {[%clk 01:10:01]} {[%emt 00:00:33]} 15. Bd3 {[%clk 00:56:08]}
{[%emt 00:03:45]} Bb7 {[%clk 01:10:15]} {[%emt 00:00:17]} 16. Ke2 {[%clk
00:55:17]} {[%emt 00:01:20]} O-O-O {[%clk 01:10:33]} {[%emt 00:00:12]} 17. Rd1
{[%clk 00:53:07]} {[%emt 00:02:40]} Bd6 {[%clk 01:09:09]} {[%emt 00:01:53]} 18.
h3 {[%clk 00:52:46]} {[%emt 00:00:51]} Kb8 {[%clk 00:57:07]} {[%emt 00:12:32]}
19. Nc3 {[%clk 00:51:08]} {[%emt 00:02:07]} Be5 {[%clk 00:55:20]} {[%emt
00:02:16]} 20. Ne4 {[%clk 00:43:26]} {[%emt 00:08:13]} f5 {[%clk 00:53:44]}
{[%emt 00:02:07]} 21. Ng5 {[%clk 00:32:28]} {[%emt 00:11:28]} Rd7 {[%clk
00:53:26]} {[%emt 00:00:48]} 22. Bc2 {[%clk 00:32:43]} {[%emt 00:00:15]} Rxd1
{[%clk 00:52:21]} {[%emt 00:01:35]} 23. Bxd1 {[%clk 00:33:08]} {[%emt
00:00:06]} Bf6 {[%clk 00:51:20]} {[%emt 00:01:30]} 24. Rb1 {[%clk 00:28:45]}
{[%emt 00:04:53]} Ba6 {[%clk 00:45:29]} {[%emt 00:06:21]} 25. b3 {[%clk
00:22:44]} {[%emt 00:06:31]} h6 {[%clk 00:45:35]} {[%emt 00:00:24]} 26. Nf7
{[%clk 00:23:09]} {[%emt 00:00:05]} Rf8 {[%clk 00:45:59]} {[%emt 00:00:05]} 27.
Nd6 {[%clk 00:23:35]} {[%emt 00:00:04]} Be5 {[%clk 00:46:14]} {[%emt 00:00:15]}
28. Nb5 {[%clk 00:23:42]} {[%emt 00:00:23]} Nxb5 {[%clk 00:46:40]} {[%emt
00:00:05]} 29. cxb5 {[%clk 00:23:43]} {[%emt 00:00:28]} Bxb5+ {[%clk 00:46:50]}
{[%emt 00:00:20]} 30. Ke3 {[%clk 00:24:08]} {[%emt 00:00:05]} Rd8 {[%emt
00:07:37]} 0-1

[Event "6e festival d'échecs d'Allauch"]
[Site "Allauch, France"]
[Date "2024.08.29"]
[Round "6.2"]
[White "Derige Kane, Yan"]
[Black "Degraeve, Remy"]
[Result "0-1"]
[TimeControl "1 h 30 min (+30s/coup)"]
[WhiteElo "2141"]
[BlackElo "2402"]

1. e4 {[%clk 01:28:52]} {[%emt 00:02:08]} e5 {[%clk 01:28:29]} {[%emt
00:02:32]} 2. Nf3 {[%clk 01:29:16]} {[%emt 00:00:06]} Nc6 {[%clk 01:28:56]}
{[%emt 00:00:02]} 3. Bb5 {[%clk 01:29:40]} {[%emt 00:00:06]} a6 {[%clk
01:29:23]} {[%emt 00:00:03]} 4. Ba4 {[%clk 01:30:07]} {[%emt 00:00:04]} Nf6
{[%clk 01:29:49]} {[%emt 00:00:03]} 5. d3 {[%clk 01:30:32]} {[%emt 00:00:06]}
d6 {[%clk 01:29:31]} {[%emt 00:00:48]} 6. c3 {[%clk 01:30:27]} {[%emt
00:00:35]} g6 {[%clk 01:29:46]} {[%emt 00:00:15]} 7. O-O {[%clk 01:25:05]}
{[%emt 00:05:53]} Bg7 {[%clk 01:30:11]} {[%emt 00:00:04]} 8. h3 {[%clk
01:22:41]} {[%emt 00:02:54]} O-O {[%clk 01:30:32]} {[%emt 00:00:08]} 9. Re1
{[%clk 01:21:21]} {[%emt 00:01:51]} Bd7 {[%clk 01:30:57]} {[%emt 00:00:05]} 10.
Nbd2 {[%clk 01:20:47]} {[%emt 00:01:04]} Qe8 {[%clk 01:31:15]} {[%emt
00:00:12]} 11. Nf1 {[%clk 01:18:51]} {[%emt 00:02:26]} Kh8 {[%clk 01:31:38]}
{[%emt 00:00:07]} 12. a3 {[%clk 01:17:43]} {[%emt 00:01:39]} Ng8 {[%clk
01:29:53]} {[%emt 00:02:15]} 13. Bc2 {[%clk 01:15:29]} {[%emt 00:02:44]} f5
{[%clk 01:29:56]} {[%emt 00:00:26]} 14. d4 {[%clk 01:15:30]} {[%emt 00:00:29]}
f4 {[%clk 01:28:39]} {[%emt 00:01:47]} 15. d5 {[%clk 01:12:06]} {[%emt
00:03:53]} Nd8 {[%clk 01:27:59]} {[%emt 00:01:09]} 16. c4 {[%clk 01:12:02]}
{[%emt 00:00:36]} g5 {[%clk 01:27:05]} {[%emt 00:01:25]} 17. N3h2 {[%clk
01:11:17]} {[%emt 00:01:14]} Qg6 {[%clk 01:21:28]} {[%emt 00:06:07]} 18. Bd3
{[%clk 00:59:37]} {[%emt 00:12:10]} Nf6 {[%clk 01:21:10]} {[%emt 00:00:48]} 19.
f3 {[%clk 00:59:25]} {[%emt 00:00:42]} h5 {[%clk 01:21:17]} {[%emt 00:00:23]}
20. Be2 {[%clk 00:59:40]} {[%emt 00:00:15]} Rg8 {[%clk 01:21:13]} {[%emt
00:00:33]} 21. b4 {[%clk 00:59:23]} {[%emt 00:00:47]} Bf8 {[%clk 01:20:09]}
{[%emt 00:01:34]} 22. Ra2 {[%clk 00:57:53]} {[%emt 00:02:01]} Nf7 {[%clk
01:20:03]} {[%emt 00:00:36]} 23. Bd2 {[%clk 00:44:43]} {[%emt 00:13:40]} Nh6
{[%clk 01:20:17]} {[%emt 00:00:16]} 24. Bc3 {[%clk 00:45:09]} {[%emt 00:00:04]}
Re8 {[%clk 01:19:21]} {[%emt 00:01:25]} 25. b5 {[%clk 00:43:48]} {[%emt
00:01:52]} Re7 {[%clk 01:18:19]} {[%emt 00:01:32]} 26. bxa6 {[%clk 00:40:44]}
{[%emt 00:03:34]} bxa6 {[%clk 01:18:45]} {[%emt 00:00:04]} 27. Ba5 {[%clk
00:41:03]} {[%emt 00:00:11]} g4 {[%clk 01:18:31]} {[%emt 00:00:44]} 28. hxg4
{[%clk 00:36:44]} {[%emt 00:04:49]} hxg4 {[%clk 01:18:57]} {[%emt 00:00:04]} 29.
fxg4 {[%clk 00:36:39]} {[%emt 00:00:36]} Nhxg4 {[%clk 01:19:14]} {[%emt
00:00:12]} 30. Nxg4 {[%clk 00:37:04]} {[%emt 00:00:04]} Nxg4 {[%clk 01:18:36]}
{[%emt 00:01:08]} 31. Bxg4 {[%clk 00:36:39]} {[%emt 00:00:55]} Bxg4 {[%clk
01:19:03]} {[%emt 00:00:03]} 32. Qd3 {[%clk 00:36:54]} {[%emt 00:00:15]} Rh7
{[%clk 01:18:45]} {[%emt 00:00:48]} 33. Nh2 {[%clk 00:36:53]} {[%emt 00:00:30]}
Qh5 {[%clk 01:18:23]} {[%emt 00:00:53]} 34. Nxg4 {[%clk 00:36:52]} {[%emt
00:00:31]} Rxg4 {[%clk 01:18:38]} {[%emt 00:00:15]} 0-1

[Event "6e festival d'échecs d'Allauch"]
[Site "Allauch, France"]
[Date "2024.08.29"]
[Round "6.3"]
[White "Charvein, Gabriel"]
[Black "Bedhouche, Rayan"]
[Result "1-0"]
[TimeControl "1 h 30 min (+30s/coup)"]
[WhiteElo "2011"]
[BlackElo "2009"]

1. e4 {[%clk 01:30:58]} {[%emt 00:00:03]} e5 {[%clk 01:30:02]} {[%emt
00:00:57]} 2. Nf3 {[%clk 01:31:11]} {[%emt 00:00:18]} Nc6 {[%clk 01:30:19]}
{[%emt 00:00:12]} 3. d4 {[%clk 01:31:37]} {[%emt 00:00:04]} exd4 {[%clk
01:30:33]} {[%emt 00:00:16]} 4. Nxd4 {[%clk 01:32:02]} {[%emt 00:00:05]} Nf6
{[%clk 01:30:24]} {[%emt 00:00:39]} 5. Nxc6 {[%clk 01:32:27]} {[%emt 00:00:06]}
bxc6 {[%clk 01:30:44]} {[%emt 00:00:11]} 6. e5 {[%clk 01:32:46]} {[%emt
00:00:09]} Qe7 {[%clk 01:31:07]} {[%emt 00:00:06]} 7. Qe2 {[%clk 01:33:12]}
{[%emt 00:00:06]} Nd5 {[%clk 01:31:29]} {[%emt 00:00:07]} 8. h4 {[%clk
01:33:38]} {[%emt 00:00:04]} Qe6 {[%clk 01:29:12]} {[%emt 00:02:48]} 9. Nd2
{[%clk 01:30:33]} {[%emt 00:03:35]} a5 {[%clk 01:29:36]} {[%emt 00:00:05]} 10.
g3 {[%clk 01:29:08]} {[%emt 00:01:55]} Nb4 {[%clk 01:27:30]} {[%emt 00:02:36]}
11. Nf3 {[%clk 01:00:43]} {[%emt 00:28:55]} Ba6 {[%clk 01:27:55]} {[%emt
00:00:06]} 12. c4 {[%clk 01:00:56]} {[%emt 00:00:17]} Qg6 {[%clk 01:28:21]}
{[%emt 00:00:04]} 13. h5 {[%clk 00:46:56]} {[%emt 00:14:30]} Qc2 {[%clk
01:28:41]} {[%emt 00:00:09]} 14. Nd4 {[%clk 00:41:07]} {[%emt 00:06:18]} Qxe2+
{[%clk 01:26:38]} {[%emt 00:02:33]} 15. Bxe2 {[%clk 00:41:07]} {[%emt
00:00:31]} c5 {[%clk 01:26:19]} {[%emt 00:00:49]} 16. Nb5 {[%clk 00:41:25]}
{[%emt 00:00:12]} Bxb5 {[%clk 01:26:16]} {[%emt 00:00:33]} 17. cxb5 {[%clk
00:41:49]} {[%emt 00:00:06]} Nc2+ {[%clk 01:26:38]} {[%emt 00:00:08]} 18. Kd1
{[%clk 00:41:46]} {[%emt 00:00:33]} Nxa1 {[%clk 01:26:32]} {[%emt 00:00:35]} 19.
Be3 {[%clk 00:41:30]} {[%emt 00:00:46]} Be7 {[%clk 01:11:58]} {[%emt 00:15:04]}
20. Kd2 {[%clk 00:30:53]} {[%emt 00:11:08]} f6 {[%clk 01:11:51]} {[%emt
00:00:36]} 21. e6 {[%clk 00:30:39]} {[%emt 00:00:44]} d5 {[%clk 01:06:57]}
{[%emt 00:05:24]} 22. h6 {[%clk 00:29:43]} {[%emt 00:01:27]} g5 {[%clk
00:59:26]} {[%emt 00:08:01]} 23. f4 {[%clk 00:21:38]} {[%emt 00:08:35]} d4
{[%clk 00:59:31]} {[%emt 00:00:23]} 24. Bf2 {[%clk 00:21:59]} {[%emt 00:00:10]}
gxf4 {[%clk 00:59:39]} {[%emt 00:00:22]} 25. gxf4 {[%clk 00:22:15]} {[%emt
00:00:15]} Rg8 {[%clk 00:59:47]} {[%emt 00:00:22]} 26. Bf3 {[%clk 00:22:17]}
{[%emt 00:00:28]} O-O-O {[%clk 00:59:40]} {[%emt 00:00:36]} 27. Rxa1 {[%clk
00:21:37]} {[%emt 00:01:10]} f5 {[%clk 00:53:29]} {[%emt 00:06:41]} 28. b4
{[%clk 00:18:51]} {[%emt 00:03:17]} cxb4 {[%clk 00:48:31]} {[%emt 00:05:28]} 29.
Rc1 {[%clk 00:18:48]} {[%emt 00:00:32]} Bd6 {[%clk 00:48:43]} {[%emt 00:00:18]}
30. Rc6 {[%clk 00:18:43]} {[%emt 00:00:36]} Bxf4+ {[%clk 00:48:09]} {[%emt
00:01:04]} 31. Kd3 {[%clk 00:19:07]} {[%emt 00:00:06]} Rd6 {[%clk 00:48:34]}
{[%emt 00:00:05]} 32. Ra6 {[%clk 00:19:30]} {[%emt 00:00:07]} Rxa6 {[%clk
00:34:24]} {[%emt 00:14:40]} 33. bxa6 {[%clk 00:19:58]} {[%emt 00:00:01]} c6
{[%clk 00:34:48]} {[%emt 00:00:07]} 34. Bxc6 {[%clk 00:20:20]} {[%emt
00:00:08]} Kc7 {[%clk 00:35:13]} {[%emt 00:00:04]} 35. Bd5 {[%clk 00:20:27]}
{[%emt 00:00:23]} Kb6 {[%clk 00:27:40]} {[%emt 00:08:03]} 36. Bc4 {[%clk
00:08:08]} {[%emt 00:12:50]} Be3 {[%clk 00:24:55]} {[%emt 00:03:13]} 37. e7
{[%clk 00:08:00]} {[%emt 00:00:39]} Rc8 {[%clk 00:20:05]} {[%emt 00:05:16]} 38.
Bh4 {[%clk 00:04:45]} {[%emt 00:03:50]} Bxh6 {[%clk 00:19:01]} {[%emt
00:01:33]} 39. Bf6 {[%clk 00:00:57]} {[%emt 00:04:18]} Be3 {[%clk 00:18:09]}
{[%emt 00:01:22]} 40. Be6 {[%clk 00:01:19]} {[%emt 00:00:09]} Re8 {[%clk
00:16:19]} {[%emt 00:02:19]} 41. Bxf5 {[%clk 00:01:31]} {[%emt 00:00:19]} h6
{[%clk 00:14:53]} {[%emt 00:01:56]} 42. Bd7 {[%clk 00:01:33]} {[%emt 00:00:28]}
Rxe7 {[%clk 00:13:11]} {[%emt 00:02:12]} 43. Bxe7 {[%clk 00:00:53]} {[%emt
00:01:11]} Kxa6 {[%clk 00:13:37]} {[%emt 00:00:05]} 44. Kc4 {[%clk 00:01:01]}
{[%emt 00:00:22]} h5 {[%clk 00:13:25]} {[%emt 00:00:40]} 45. Bd8 {[%clk
00:01:08]} {[%emt 00:00:24]} Bf2 {[%clk 00:13:40]} {[%emt 00:00:13]} 46. Bc8+
{[%clk 00:01:23]} {[%emt 00:00:16]} Ka7 {[%clk 00:13:41]} {[%emt 00:00:29]} 47.
Bxa5 {[%clk 00:01:42]} {[%emt 00:00:11]} h4 {[%clk 00:12:25]} {[%emt 00:01:46]}
48. Bxb4 {[%clk 00:01:57]} {[%emt 00:00:16]} Kb8 {[%clk 00:12:46]} {[%emt
00:00:09]} 49. Bh3 {[%clk 00:02:14]} {[%emt 00:00:12]} Kb7 {[%clk 00:12:54]}
{[%emt 00:00:22]} 50. Bc5 {[%clk 00:02:11]} {[%emt 00:00:34]} Ka6 {[%clk
00:13:07]} {[%emt 00:00:15]} 51. Bxd4 {[%clk 00:02:04]} {[%emt 00:00:39]} Bg3
{[%clk 00:13:33]} {[%emt 00:00:04]} 52. Bc8+ {[%clk 00:02:13]} {[%emt
00:00:21]} Ka5 {[%clk 00:13:15]} {[%emt 00:00:44]} 53. Bd7 {[%clk 00:01:59]}
{[%emt 00:00:47]} Ka6 {[%clk 00:12:41]} {[%emt 00:01:03]} 54. Bc3 {[%clk
00:02:10]} {[%emt 00:00:19]} Bf2 {[%clk 00:13:01]} {[%emt 00:00:09]} 55. Kd3
{[%clk 00:02:22]} {[%emt 00:00:19]} Kb7 {[%clk 00:13:04]} {[%emt 00:00:26]} 56.
Ke2 {[%clk 00:02:43]} {[%emt 00:00:09]} Kc7 {[%clk 00:13:19]} {[%emt 00:00:15]}
57. Bf5 {[%clk 00:03:00]} {[%emt 00:00:12]} Bg3 {[%clk 00:13:44]} {[%emt
00:00:05]} 58. Be1 {[%clk 00:03:18]} {[%emt 00:00:12]} Bd6 {[%clk 00:13:18]}
{[%emt 00:00:56]} 59. Bxh4 {[%clk 00:03:40]} {[%emt 00:00:08]} Kc6 {[%clk
00:13:43]} {[%emt 00:00:05]} 60. Bd3 {[%clk 00:03:47]} {[%emt 00:00:23]} Ba3
{[%clk 00:14:04]} {[%emt 00:00:09]} 61. Kd2 {[%clk 00:04:03]} {[%emt 00:00:13]}
Bb4+ {[%clk 00:13:20]} {[%emt 00:01:15]} 62. Kc2 {[%clk 00:04:26]} {[%emt
00:00:07]} Ba5 {[%clk 00:13:20]} {[%emt 00:00:29]} 63. Bf6 {[%clk 00:04:39]}
{[%emt 00:00:18]} Bb6 {[%clk 00:12:42]} {[%emt 00:01:07]} 64. Kb3 {[%clk
00:04:54]} {[%emt 00:00:15]} Ba7 {[%clk 00:11:32]} {[%emt 00:01:39]} 65. Kc4
{[%clk 00:05:02]} {[%emt 00:00:24]} 1-0